bitfinex/quotes_ETHUSD_20250324
["timestamp","ask_amount","ask_price","bid_price","bid_amount"]
[1742784369780,4.04849704,1990.5,1990.4,28.989]
[1742784372657,4.04849704,1990.5,1990.4,34.01311]
[1742784373776,4.04849704,1990.5,1990.4,28.989]
[1742784377066,4.04849704,1990.5,1990.4,34.01311]
[1742784377497,4.04849704,1990.5,1990.4,29.99103324]
[1742784378513,7.04849704,1990.5,1990.4,29.99103324]
[1742784379544,12.07235704,1990.5,1990.4,29.99103324]
[1742784379992,7.04849704,1990.5,1990.4,29.99103324]
[1742784381729,7.04849704,1990.5,1990.4,1.00203324]
[1742784382045,3.0,1990.4,1990.2,34.01248]
[1742784382187,3.849549,1990.3,1990.2,34.01248]
[1742784382389,4.04941071,1990.3,1990.2,34.01248]
[1742784382785,4.04941071,1990.3,1990.2,28.988]
[1742784383924,4.04941071,1990.3,1990.2,34.01262]
[1742784384085,4.04941071,1990.3,1990.2,28.988]
[1742784385525,4.04941071,1990.3,1990.2,34.01262]
[1742784385717,4.04941071,1990.3,1990.2,28.988]
[1742784386424,4.04941071,1990.3,1990.2,34.01262]
[1742784386620,0.19986171,1990.3,1990.2,34.01262]
[1742784386826,0.19986171,1990.3,1990.2,34.44102]
[1742784387034,3.849549,1990.5,1990.3,5.02432]
[1742784388533,3.0,1990.4,1990.3,5.02432]
[1742784392416,6.849549,1990.5,1990.4,5.02411]
[1742784394215,6.849549,1990.5,1990.3,5.02424]
[1742784394942,6.849549,1990.5,1990.3,5.02422]
[1742784395318,6.849549,1990.5,1990.3,5.02436]
[1742784395513,6.849549,1990.5,1990.3,10.04863]
[1742784395863,6.849549,1990.5,1990.3,5.02427]
[1742784396041,6.849549,1990.5,1990.4,28.989]
[1742784396414,6.849549,1990.5,1990.4,34.56311]
[1742784396639,6.849549,1990.7,1990.6,5.02361]
[1742784396809,3.0,1990.6,1990.5,10.18318]
[1742784397718,3.849549,1990.7,1990.5,10.18318]
[1742784397918,3.849549,1990.7,1990.5,9.75478]
[1742784398265,3.0,1990.6,1990.5,9.75478]
[1742784399460,3.19899886,1990.6,1990.5,9.75478]
[1742784403052,3.19899886,1990.6,1990.4,33.72]
[1742784403230,3.849549,1990.5,1990.4,33.72]
[1742784403425,3.849549,1990.5,1990.4,28.989]
[1742784403426,7.04900469,1990.5,1990.4,28.989]
[1742784403631,12.86706469,1990.5,1990.4,28.989]
[1742784404771,16.71661369,1990.5,1990.4,28.989]
[1742784405673,16.71661369,1990.5,1990.0,28.987]
[1742784405674,3.0,1990.2,1990.0,28.987]
[1742784405867,3.849549,1990.1,1990.0,28.987]
[1742784406068,4.643749,1990.1,1990.0,28.987]
[1742784406364,7.84320469,1990.1,1990.0,28.987]
[1742784406733,12.86807469,1990.1,1990.0,28.987]
[1742784407131,0.7942,1989.6,1989.4,28.988]
[1742784407367,13.519558,1989.6,1989.4,28.988]
[1742784407570,8.22030156,1989.5,1989.4,28.988]
[1742784407941,9.01450156,1989.5,1989.4,28.988]
[1742784408687,5.82178,1989.1,1988.8,28.993]
[1742784408890,3.849549,1988.9,1988.8,28.993]
[1742784409363,4.03864361,1988.9,1988.8,28.993]
[1742784410372,4.03864361,1988.9,1988.8,34.02115]
[1742784412489,4.03864361,1988.9,1988.8,37.31943763]
[1742784413880,4.03864361,1988.9,1988.8,32.29128763]
[1742784414187,4.03864361,1988.9,1988.8,28.993]
[1742784415654,4.03864361,1988.9,1988.8,30.02124966]
[1742784417115,4.03864361,1988.9,1988.8,35.04939966]
[1742784417463,0.18909461,1988.9,1988.8,35.04939966]
[1742784417669,3.849549,1989.1,1988.9,5.0279]
[1742784417879,0.7556,1989.5,1989.1,0.4284]
[1742784418083,3.849549,1989.5,1989.3,5.02687]
[1742784418358,3.849549,1989.5,1989.4,34.03064]
[1742784418559,3.849549,1989.7,1989.5,5.02622]
[1742784418764,3.849549,1989.7,1989.6,5.02613]
[1742784418965,6.849549,1989.7,1989.6,5.02613]
[1742784419265,3.849549,1989.7,1989.6,5.02613]
[1742784419615,3.849549,1989.7,1989.6,1.048072]
[1742784420002,3.849549,1989.7,1989.5,0.4284]
[1742784420219,3.849549,1989.7,1989.6,4.733]
[1742784420502,5.02618,1989.6,1989.4,29.004]
[1742784420857,3.849549,1989.5,1989.4,29.004]
[1742784421261,11.875929,1989.5,1989.4,29.004]
[1742784421475,8.02638,1989.5,1989.4,29.004]
[1742784422259,8.78198,1989.5,1989.4,29.004]
[1742784422500,9.15076434,1989.5,1989.4,29.004]
[1742784423417,3.7556,1989.1,1988.8,29.003]
[1742784423618,3.849549,1988.9,1988.8,32.879428]
[1742784424022,3.849549,1988.9,1988.8,37.907578]
[1742784425094,3.849549,1988.9,1988.8,32.879428]
[1742784426085,3.849549,1988.9,1988.8,29.003]
[1742784426286,6.849549,1988.9,1988.8,29.003]
[1742784426728,11.877449,1988.9,1988.8,29.003]
[1742784427231,6.849549,1988.9,1988.8,29.003]
[1742784427726,11.877449,1988.9,1988.8,29.003]
[1742784428222,6.849549,1988.9,1988.8,29.003]
[1742784429297,7.0230231,1988.9,1988.8,29.003]
[1742784429495,3.1734741,1988.9,1988.8,37.434288]
[1742784429701,0.1734741,1988.9,1988.8,37.434288]
[1742784429900,0.1734741,1988.9,1988.8,42.595688]
[1742784430114,3.849549,1989.1,1988.9,5.0278]
[1742784430430,3.849549,1989.1,1989.0,5.57765]
[1742784430886,3.849549,1989.1,1988.9,4.7623488]
[1742784431085,3.849549,1989.1,1988.8,38.76411]
[1742784431314,3.849549,1988.9,1988.8,34.03111]
[1742784431525,3.849549,1988.9,1988.8,38.76511]
[1742784432522,3.849549,1989.1,1989.0,5.02765]
[1742784433719,0.832,1989.2,1989.0,5.02765]
[1742784433720,3.849549,1989.2,1989.0,5.02765]
[1742784433895,3.849549,1989.2,1989.0,5.573255]
[1742784434096,3.849549,1989.2,1989.1,5.02729]
[1742784434399,3.849549,1989.4,1989.2,5.02705]
[1742784434614,6.849549,1989.4,1989.3,5.02689]
[1742784437331,6.849549,1989.4,1989.2,5.02705]
[1742784437633,6.849549,1989.4,1989.1,5.02738]
[1742784437935,3.849549,1989.2,1989.1,5.02738]
[1742784440340,3.849549,1989.2,1989.1,34.03438]
[1742784443640,3.849549,1989.2,1989.1,35.01652375]
[1742784444346,4.01997373,1989.2,1989.1,35.01652375]
[1742784446168,0.17042473,1989.2,1989.1,35.01652375]
[1742784446450,3.849549,1989.4,1989.2,5.02694]
[1742784446815,3.849549,1989.4,1989.1,34.03436]
[1742784447564,3.849549,1989.4,1989.1,34.03421]
[1742784447846,3.849549,1989.2,1989.1,34.03421]
[1742784449553,3.849549,1989.2,1989.1,29.007]
[1742784453153,3.849549,1989.2,1989.1,30.02931465]
[1742784453657,11.876689,1989.2,1989.1,30.02931465]
[1742784453861,12.651989,1989.2,1989.1,29.007]
[1742784454015,5.80346,1988.8,1988.5,29.007]
[1742784454219,3.849549,1988.6,1988.5,29.007]
[1742784455118,3.849549,1988.6,1988.5,34.03591]
[1742784455522,0.7753,1988.8,1988.6,5.02866]
[1742784455721,3.849549,1988.9,1988.7,5.02826]
[1742784455961,3.0,1988.8,1988.7,5.02826]
[1742784458327,3.0,1988.8,1988.7,6.131792]
[1742784459075,3.0,1989.0,1988.9,5.0279]
[1742784459574,4.627749,1989.3,1989.0,5.02746]
[1742784459741,4.627749,1989.3,1989.0,10.05496]
[1742784460068,3.0,1989.2,1989.0,10.05496]
[1742784460366,4.627749,1989.3,1989.0,5.02746]
[1742784460552,3.0,1989.2,1989.0,10.05495]
[1742784461018,3.0,1989.2,1989.0,5.02746]
[1742784461164,3.0,1989.2,1989.0,34.03646]
[1742784461368,3.849549,1989.1,1989.0,29.009]
[1742784462907,3.849549,1989.1,1989.0,34.03665]
[1742784464320,3.849549,1989.1,1989.0,29.009]
[1742784465774,6.849549,1989.1,1989.0,29.009]
[1742784468298,3.0,1989.1,1989.0,34.03665]
[1742784468469,3.0,1989.1,1989.0,30.45125059]
[1742784468671,3.0,1989.1,1989.0,29.009]
[1742784469767,8.02739,1989.1,1989.0,29.009]
[1742784470509,3.0,1989.1,1989.0,30.01058148]
[1742784471672,3.0,1989.1,1989.0,35.03823148]
[1742784474201,0.17113655,1989.1,1989.0,37.4202075]
[1742784474589,4.627749,1989.3,1989.0,37.4202075]
[1742784474906,4.627749,1989.3,1989.1,5.02734]
[1742784477306,3.772,1989.5,1989.2,5.02714]
[1742784477507,6.849549,1989.5,1989.2,0.502714]
[1742784477730,0.25670008,1990.3,1989.5,5.02634]
[1742784477882,5.79513,1990.8,1990.2,5.02462]
[1742784478205,3.849549,1990.5,1990.3,38.82926]
[1742784478415,3.849549,1990.5,1990.3,43.85346]
[1742784478913,3.849549,1990.5,1990.4,5.02411]
[1742784479270,0.772,1990.8,1990.7,5.02335]
[1742784479748,0.772,1990.8,1990.6,5.02356]
[1742784481112,0.772,1990.8,1990.6,10.04703]
[1742784481415,3.849549,1991.1,1990.7,4.794]
[1742784481624,0.772,1991.2,1991.1,5.02234]
[1742784481834,3.849549,1991.3,1991.0,5.02252]
[1742784481982,3.0,1991.2,1991.0,5.02252]
[1742784482317,3.849549,1991.3,1991.0,5.02252]
[1742784482470,3.0,1991.2,1990.9,5.02273]
[1742784482807,8.871429,1991.3,1990.8,5.50249]
[1742784482998,3.0,1991.1,1990.9,5.02284]
[1742784483320,3.0,1991.0,1990.3,29.4364]
[1742784483525,3.849549,1990.9,1990.7,5.02333]
[1742784483729,4.621549,1991.1,1990.8,5.0231]
[1742784483943,3.0,1991.0,1990.7,5.02333]
[1742784484629,3.0,1991.0,1990.5,10.2553031]
[1742784484826,3.0,1991.0,1990.8,5.023]
[1742784485031,3.0,1991.0,1990.8,6.027634]
[1742784485331,4.621549,1991.1,1990.8,6.027634]
[1742784485332,8.02215,1991.2,1990.8,6.027634]
[1742784485732,13.04444,1991.2,1990.8,6.027634]
[1742784485933,3.0,1991.0,1990.7,5.02332]
[1742784486436,3.0,1991.0,1990.7,10.0465]
[1742784487827,3.0,1991.0,1990.7,5.02318]
[1742784488031,3.0,1991.0,1990.6,5.02359]
[1742784488032,8.02279,1991.0,1990.8,28.991]
[1742784488196,3.7951,1990.9,1990.8,28.991]
[1742784488728,3.0,1990.9,1990.8,28.991]
[1742784489112,3.19236394,1990.9,1990.8,28.991]
[1742784490106,0.19236394,1990.9,1990.8,35.82229876]
[1742784490313,3.0,1991.2,1990.9,5.02267]
[1742784490519,0.19236394,1991.1,1991.0,5.02258]
[1742784490723,3.0,1991.2,1991.0,5.02258]
[1742784490932,0.19200883,1991.1,1991.0,5.02258]
[1742784491147,3.0,1991.2,1991.0,5.02258]
[1742784491310,0.19200883,1991.1,1991.0,5.02258]
[1742784491641,3.0,1991.2,1991.0,5.02258]
[1742784491948,0.19200883,1991.1,1990.9,5.02278]
[1742784492267,3.0,1991.2,1990.9,10.04544]
[1742784492446,0.19200883,1991.0,1990.9,10.04544]
[1742784492604,3.0,1991.2,1991.0,5.02256]
[1742784492809,0.7951,1991.3,1991.0,5.02256]
[1742784493239,4.644649,1991.3,1991.0,5.02256]
[1742784493448,3.849549,1991.1,1990.9,4.777]
[1742784494845,3.849549,1991.1,1990.8,38.78894]
[1742784495054,3.849549,1990.9,1990.8,38.78894]
[1742784495239,3.849549,1990.9,1990.8,28.991]
[1742784495549,3.849549,1990.9,1990.8,33.766]
[1742784496252,3.849549,1990.9,1990.8,28.991]
[1742784496748,3.849549,1990.9,1990.8,34.0141]
[1742784497110,3.849549,1990.9,1990.8,28.991]
[1742784499387,3.7951,1991.3,1990.9,5.45103]
[1742784499561,3.849549,1991.2,1991.0,5.02251]
[1742784499737,3.849549,1991.2,1991.0,5.02243]
[1742784500073,3.849549,1991.2,1991.0,10.04485]
[1742784500240,3.0,1991.1,1991.0,5.02242]
[1742784500440,3.0,1991.1,1991.0,6.069778]
[1742784500677,3.0,1991.1,1990.9,5.02276]
[1742784500981,3.849549,1991.0,1990.9,5.02276]
[1742784504275,4.04115191,1991.0,1990.9,5.02276]
[1742784506189,4.04115191,1991.0,1990.9,6.03862438]
[1742784506353,4.04115191,1991.0,1990.9,10.79562438]
[1742784506700,4.04115191,1991.0,1990.9,15.66446762]
[1742784506850,0.19160291,1991.0,1990.9,15.66446762]
[1742784507686,0.19160291,1991.0,1990.9,10.90746762]
[1742784507889,0.19160291,1991.0,1990.9,15.66246762]
[1742784508072,0.19160291,1991.0,1990.9,10.90746762]
[1742784508392,0.19160291,1991.0,1990.9,15.66246762]
[1742784508964,0.19160291,1991.0,1990.9,16.13105596]
[1742784509160,4.79585191,1991.0,1990.9,1.8593249]
[1742784509396,0.19160291,1991.0,1990.9,6.8821749]
[1742784509596,6.849549,1991.1,1991.0,5.0226]
[1742784510293,6.849549,1991.1,1991.0,5.49118834]
[1742784512458,6.849549,1991.1,1991.0,5.0226]
[1742784512990,3.0,1991.1,1991.0,6.12873144]
[1742784514578,3.0,1991.1,1991.0,6.50387186]
[1742784514905,6.849549,1991.1,1991.0,0.37514042]
[1742784515289,6.849549,1991.1,1991.0,5.39774042]
[1742784515485,6.849549,1991.1,1991.0,0.84405887]
[1742784515675,6.849549,1991.1,1991.0,0.46891845]
[1742784516706,6.849549,1991.1,1991.0,28.98]
[1742784519219,7.04155782,1991.1,1991.0,28.98]
[1742784523121,7.04155782,1991.1,1991.0,34.0026]
[1742784527847,7.04155782,1991.1,1991.0,34.47186735]
[1742784529049,7.04155782,1991.1,1991.0,34.0026]
[1742784531235,7.04155782,1991.1,1991.0,37.2449152]
[1742784531437,8.82e-06,1991.1,1991.0,38.2233152]
[1742784531734,0.7658,1991.9,1991.8,5.02058]
[1742784531910,4.615349,1992.1,1991.9,5.02021]
[1742784532115,4.615349,1992.1,1992.0,5.02008]
[1742784532315,4.615349,1992.1,1991.9,5.02025]
[1742784532549,3.0,1992.0,1991.9,5.02025]
[1742784533545,4.615349,1992.1,1991.8,39.021]
[1742784533751,3.849549,1991.9,1991.8,34.00043]
[1742784533959,3.849549,1991.9,1991.8,38.377656]
[1742784537369,3.849549,1991.9,1991.8,28.98]
[1742784537578,3.849549,1991.9,1991.8,33.723]
[1742784538863,3.849549,1991.9,1991.8,28.98]
[1742784539160,4.02844783,1991.9,1991.8,28.98]
[1742784539561,12.81457783,1991.9,1991.8,28.98]
[1742784541543,5.02129,1991.6,1991.3,4.744]
[1742784541770,3.849549,1991.4,1991.2,28.973]
[1742784541969,3.849549,1991.4,1991.2,30.35317687]
[1742784542300,0.1814349,1991.3,1991.2,35.92526687]
[1742784542464,0.1814349,1991.3,1991.2,30.90317687]
[1742784542649,0.1814349,1991.3,1991.2,28.973]
[1742784543177,13.893029,1991.4,1991.2,28.973]
[1742784543357,0.1814349,1991.3,1991.2,28.973]
[1742784543725,13.893029,1991.4,1991.2,28.973]
[1742784543851,8.2032749,1991.3,1991.2,28.973]
[1742784544879,8.9690749,1991.3,1991.2,28.973]
[1742784549654,12.8186239,1991.3,1991.2,28.973]
[1742784550163,8.9690749,1991.3,1991.2,28.973]
[1742784552298,12.8186239,1991.3,1991.2,28.973]
[1742784554086,8.0226,1991.0,1990.8,0.55]
[1742784554281,8.0226,1991.0,1990.7,28.979]
[1742784554282,0.17473971,1990.9,1990.7,28.979]
[1742784554487,3.849549,1990.8,1990.7,28.979]
[1742784554876,4.02413649,1990.8,1990.7,28.979]
[1742784556590,4.02413649,1990.8,1990.7,34.00235]
[1742784556778,0.17458749,1990.8,1990.7,34.00235]
[1742784557190,0.8258,1992.9,1991.1,3.55]
[1742784557356,5.01867,1992.6,1991.9,5.02033]
[1742784557556,3.849549,1992.4,1992.2,5.01937]
[1742784557889,3.849549,1992.4,1992.2,5.01943]
[1742784558388,3.849549,1992.4,1992.3,5.01932]
[1742784561011,3.0,1992.7,1992.4,5.01893]
[1742784561198,3.849549,1992.6,1992.4,10.03787]
[1742784561510,3.849549,1992.6,1992.4,5.01893]
[1742784563285,3.849549,1992.6,1992.4,10.03787]
[1742784563589,3.849549,1992.6,1992.4,5.01893]
[1742784564171,3.849549,1992.6,1992.4,10.03791]
[1742784564377,3.0,1992.7,1992.4,5.01893]
[1742784564588,0.10770833,1992.6,1992.5,5.01879]
[1742784566216,0.10770833,1992.6,1992.5,6.022562]
[1742784566372,5.84362,1992.9,1992.5,6.022562]
[1742784566577,0.10786089,1992.8,1992.5,5.01879]
[1742784567113,0.10786089,1992.8,1992.5,5.01869]
[1742784569016,0.10786089,1992.8,1992.5,10.03734]
[1742784569593,3.849549,1992.7,1992.5,10.03734]
[1742784569910,3.849549,1992.7,1992.5,5.01865]
[1742784570218,0.10786089,1992.6,1992.5,5.01865]
[1742784572304,0.10786089,1992.6,1992.5,8.20567999]
[1742784573924,0.10786089,1992.6,1992.5,9.18407999]
[1742784574295,3.849549,1992.8,1992.7,5.01831]
[1742784574822,3.95918956,1992.8,1992.7,5.01831]
[1742784576126,0.10964056,1992.8,1992.7,5.56831]
[1742784576327,0.10964056,1992.8,1992.7,6.626988]
[1742784576517,3.849549,1992.9,1992.7,6.626988]
[1742784576712,0.11136921,1992.8,1992.6,5.0184]
[1742784576905,3.849549,1992.7,1992.6,5.01839]
[1742784577428,3.96091821,1992.7,1992.6,5.01839]
[1742784580909,3.96091821,1992.7,1992.5,12.99982999]
[1742784581232,3.96091821,1992.7,1992.5,8.20582999]
[1742784581435,3.96091821,1992.7,1992.5,12.99682999]
[1742784582130,3.96091821,1992.7,1992.5,8.20582999]
[1742784582294,3.96091821,1992.7,1992.5,18.01350999]
[1742784582627,3.96091821,1992.7,1992.5,8.20570999]
[1742784582934,3.96091821,1992.7,1992.5,12.99470999]
[1742784583796,3.96091821,1992.7,1992.4,33.98304]
[1742784583997,3.849549,1992.5,1992.4,28.964]
[1742784584197,3.96112158,1992.5,1992.4,28.964]
[1742784591004,3.96112158,1992.5,1992.4,29.98257158]
[1742784593532,3.96112158,1992.5,1992.4,1.01857158]
[1742784593718,3.96112158,1992.5,1992.3,5.01931]
[1742784593915,3.96112158,1992.5,1992.2,43.78381]
[1742784594337,3.96112158,1992.5,1992.3,0.46795525]
[1742784594966,5.77167,1992.4,1992.3,0.46795525]
[1742784595442,0.86213896,1992.4,1992.3,0.46795525]
[1742784595642,5.88135896,1992.4,1992.2,28.958]
[1742784595849,3.849549,1992.3,1992.2,28.958]
[1742784596344,3.95908796,1992.3,1992.2,28.958]
[1742784601138,0.10953896,1992.3,1992.2,31.8538]
[1742784601453,3.849549,1992.5,1992.2,42.32134]
[1742784601613,0.10836936,1992.3,1992.2,37.30177]
[1742784601948,3.849549,1992.3,1992.2,28.958]
[1742784602151,5.01996,1992.1,1991.6,29.3884]
[1742784602354,0.7526,1992.0,1991.9,5.02033]
[1742784602652,0.10836936,1992.3,1991.9,5.02033]
[1742784602653,3.849549,1992.1,1991.9,5.02033]
[1742784602855,0.10796248,1992.0,1991.9,5.02033]
[1742784603057,0.10796248,1992.0,1991.9,6.06725]
[1742784606664,0.10796248,1992.0,1991.9,11.40025]
[1742784606962,3.849549,1992.4,1992.2,5.01951]
[1742784607148,8.82736,1992.6,1992.0,0.55]
[1742784607149,3.849549,1992.3,1992.0,0.55]
[1742784607351,3.94653119,1992.3,1992.0,0.55]
[1742784607538,3.94653119,1992.3,1992.0,1.7367802]
[1742784607740,3.94653119,1992.3,1992.2,5.01951]
[1742784608768,3.94653119,1992.3,1992.1,5.01982]
[1742784609067,3.94653119,1992.3,1992.2,5.01957]
[1742784610026,3.94653119,1992.3,1992.1,5.01966]
[1742784610368,3.94653119,1992.3,1992.0,6.32912425]
[1742784610525,3.849549,1992.1,1992.0,30.27105425]
[1742784610924,3.94653119,1992.1,1992.0,30.27105425]
[1742784611361,3.94653119,1992.1,1992.0,29.80363466]
[1742784611564,3.94653119,1992.1,1992.0,29.33608271]
[1742784612177,3.94653119,1992.1,1992.0,28.962]
[1742784613674,16.62460019,1992.1,1992.0,28.962]
[1742784614678,0.8087,1991.7,1991.4,28.962]
[1742784614838,3.849549,1991.5,1991.4,28.962]
[1742784615237,3.94653119,1991.5,1991.4,28.962]
[1742784615680,3.94653119,1991.5,1991.4,29.9671348]
[1742784622580,9.76817119,1991.5,1991.4,29.9671348]
[1742784623305,9.671189,1991.5,1991.4,29.9671348]
[1742784623442,12.671189,1991.5,1991.4,29.9671348]
[1742784623649,12.671189,1991.5,1991.4,28.962]
[1742784627278,7.649849,1991.5,1991.4,28.962]
[1742784627982,3.0,1991.4,1991.3,1.02801951]
[1742784628168,3.0,1991.4,1991.2,5.02209]
[1742784628347,3.0,1991.4,1991.1,5.4505]
[1742784629445,3.849549,1991.3,1991.1,5.4505]
[1742784630475,0.8144,1991.8,1991.2,5.32]
[1742784630685,4.663949,1991.8,1991.4,5.57135]
[1742784630842,4.663949,1991.8,1991.4,10.59282]
[1742784631042,4.663949,1991.8,1991.5,5.02128]
[1742784631667,9.684529,1991.8,1991.5,5.02128]
[1742784631882,0.25207831,1991.7,1991.4,6.673652]
[1742784632179,0.25207831,1991.7,1991.5,5.0213]
[1742784632876,3.849549,1991.6,1991.3,10.47194]
[1742784633080,3.849549,1991.6,1991.5,5.02134]
[1742784633384,6.849549,1991.8,1991.5,5.02134]
[1742784634087,4.663949,1991.9,1991.7,5.02073]
[1742784634390,6.849549,1991.9,1991.8,5.02058]
[1742784634587,3.0,1991.9,1991.8,5.02058]
[1742784635152,0.8144,1992.3,1991.9,5.44873]
[1742784635352,5.01922,1992.4,1992.0,5.01996]
[1742784635576,3.849549,1992.3,1992.0,5.01996]
[1742784635788,3.0,1992.2,1992.0,5.01996]
[1742784635954,3.849549,1992.3,1992.0,5.01996]
[1742784635955,3.849549,1992.3,1992.0,11.086709]
[1742784636285,3.849549,1992.5,1992.1,5.01981]
[1742784636470,8.868419,1992.5,1992.1,5.01981]
[1742784636650,3.849549,1992.3,1992.1,5.01981]
[1742784637067,3.849549,1992.3,1992.1,6.1047779]
[1742784637267,3.849549,1992.3,1992.1,11.1244079]
[1742784637486,3.849549,1992.5,1992.1,11.1244079]
[1742784637685,3.849549,1992.5,1992.2,27.763]
[1742784637868,8.868369,1992.5,1992.2,27.763]
[1742784638064,3.849549,1992.5,1992.2,32.78257]
[1742784638586,3.849549,1992.5,1992.2,36.67129679]
[1742784639190,0.25564035,1992.4,1992.2,36.67129679]
[1742784640185,0.25564035,1992.4,1992.3,5.01932]
[1742784642492,0.25564035,1992.4,1992.2,37.09962679]
[1742784642658,0.25564035,1992.4,1992.3,5.01932]
[1742784642990,0.25564035,1992.4,1992.3,9.23121468]
[1742784644893,0.25564035,1992.4,1992.3,9.83140487]
[1742784645195,3.0,1992.8,1992.6,5.01847]
[1742784645355,3.0,1992.8,1992.7,0.501847]
[1742784645685,3.0,1992.8,1992.6,10.03684]
[1742784645869,3.849549,1992.9,1992.6,10.03684]
[1742784646585,3.0,1992.9,1992.7,5.01828]
[1742784646793,6.849549,1992.9,1992.7,5.01828]
[1742784648089,11.867359,1992.9,1992.5,9.79175]
[1742784648283,3.849549,1992.7,1992.5,11.317671]
[1742784648491,3.849549,1992.7,1992.5,6.298921]
[1742784648656,4.634049,1992.7,1992.5,6.298921]
[1742784649063,4.634049,1992.7,1992.4,10.03776]
[1742784649300,4.634049,1992.7,1992.4,14.81184]
[1742784649697,4.634049,1992.7,1992.4,9.79288]
[1742784650420,4.634049,1992.7,1992.4,14.81176]
[1742784650700,4.634049,1992.7,1992.5,27.754]
[1742784651002,3.849549,1992.7,1992.5,36.5281055]
[1742784652706,3.849549,1992.7,1992.6,1.00529393]
[1742784654204,4.11378456,1992.7,1992.6,1.00529393]
[1742784658309,4.09885156,1992.7,1992.6,1.00529393]
[1742784660504,9.11716156,1992.7,1992.6,1.00529393]
[1742784660706,4.09885156,1992.7,1992.6,1.00529393]
[1742784667715,0.26423556,1992.7,1992.6,9.11079439]
[1742784667883,3.849549,1992.9,1992.6,9.11079439]
[1742784668077,0.26276125,1992.8,1992.6,9.11079439]
[1742784668285,0.26276125,1992.8,1992.6,9.11066439]
[1742784668528,3.849549,1992.8,1992.7,5.01831]
[1742784668725,3.849549,1992.8,1992.7,6.43120744]
[1742784668886,4.11231025,1992.8,1992.7,6.43120744]
[1742784669378,4.11231025,1992.8,1992.7,1.41289744]
[1742784669728,4.11231025,1992.8,1992.6,9.11075439]
[1742784670844,4.11231025,1992.8,1992.6,14.12915439]
[1742784671126,4.11231025,1992.8,1992.7,5.01831]
[1742784672033,0.26276125,1992.8,1992.7,5.01831]
[1742784672246,0.26276125,1992.8,1992.7,6.04689199]
[1742784672420,3.1170871,1993.1,1992.9,5.01757]
[1742784672589,0.26326966,1993.0,1992.9,5.56757]
[1742784672791,0.26326966,1993.0,1992.9,10.32057]
[1742784673337,0.26326966,1993.0,1992.9,10.74897]
[1742784673623,4.11281866,1993.0,1992.9,12.27217999]
[1742784673824,4.11281866,1993.0,1992.9,7.98817926]
[1742784674000,4.11281866,1993.0,1992.9,8.45655209]
[1742784674317,4.11281866,1993.0,1992.9,3.43898209]
[1742784674535,4.11281866,1993.0,1992.9,3.0640671]
[1742784674991,4.11281866,1993.0,1992.9,4.06369507]
[1742784675191,4.11281866,1993.0,1992.9,3.12632297]
[1742784675392,4.11281866,1993.0,1992.9,8.14413297]
[1742784676104,4.11281866,1993.0,1992.9,0.99962797]
[1742784676506,4.11281866,1993.0,1992.8,9.77088]
[1742784677098,4.11281866,1993.0,1992.7,10.31619]
[1742784677299,4.11281866,1993.0,1992.7,10.31611]
[1742784677637,4.11281866,1993.0,1992.7,15.33432]
[1742784677837,0.26326966,1993.0,1992.7,15.33432]
[1742784679461,0.26520143,1992.8,1992.7,9.76631]
[1742784681336,0.26520143,1992.8,1992.7,4.748]
[1742784681640,0.26520143,1992.8,1992.6,12.84849046]
[1742784681809,0.26520143,1992.8,1992.6,3.08694046]
[1742784682014,9.94771043,1992.8,1992.5,27.754]
[1742784682211,3.849549,1992.6,1992.5,27.754]
[1742784682429,4.11475048,1992.6,1992.5,27.754]
[1742784687042,0.26520148,1992.6,1992.5,32.77282]
[1742784687348,3.849549,1992.9,1992.5,41.613658]
[1742784687515,0.26398136,1992.8,1992.6,0.9784]
[1742784687917,0.26398136,1992.8,1992.7,9.76231]
[1742784688150,6.9666361,1993.1,1992.8,5.01802]
[1742784688335,0.26474397,1993.0,1992.9,5.01768]
[1742784688542,0.26474397,1993.0,1992.9,6.44965]
[1742784690114,0.26474397,1993.0,1992.9,6.99965]
[1742784690324,0.26474397,1993.0,1992.9,1.98197]
[1742784690522,0.26474397,1993.0,1992.7,10.19061]
[1742784690720,0.26474397,1993.0,1992.7,15.20874]
[1742784691327,0.26474397,1993.0,1992.8,5.01805]
[1742784691724,0.26474397,1993.0,1992.9,33.31581]
[1742784692027,0.26474397,1993.0,1992.9,27.748]
[1742784692867,8.28230397,1993.0,1992.9,27.748]
[1742784693951,9.09710397,1993.0,1992.9,27.748]
[1742784695139,5.01845,1992.7,1992.3,27.747]
[1742784695341,3.849549,1992.4,1992.3,28.297]
[1742784695541,3.849549,1992.4,1992.3,29.06711676]
[1742784695737,4.11541123,1992.4,1992.3,28.51711676]
[1742784696065,7.11541123,1992.4,1992.3,27.747]
[1742784696462,12.13448123,1992.4,1992.3,27.747]
[1742784696777,12.13448123,1992.4,1992.3,28.74389881]
[1742784697483,7.11541123,1992.4,1992.3,28.74389881]
[1742784698791,3.26586223,1992.4,1992.3,28.74389881]
[1742784699254,0.26586223,1992.4,1992.3,35.9539066]
[1742784699664,3.849549,1992.6,1992.3,35.9539066]
[1742784699868,0.26586223,1992.4,1992.3,34.95700779]
[1742784700171,0.26586223,1992.4,1992.3,34.95683779]
[1742784700379,3.849549,1992.6,1992.4,5.01902]
[1742784700539,0.26586223,1992.5,1992.4,5.01902]
[1742784700737,0.26586223,1992.5,1992.3,34.95693779]
[1742784700941,0.26586223,1992.5,1992.4,5.01907]
[1742784701139,0.26586223,1992.5,1992.3,34.95694779]
[1742784701381,0.26586223,1992.5,1992.3,34.95678779]
[1742784701889,0.26586223,1992.5,1992.4,5.01907]
[1742784703086,0.26586223,1992.5,1992.4,8.27084636]
[1742784708800,0.24455887,1992.5,1992.4,8.27084636]